fUST/lending_fUST_20251020
["ID","MTS","AMOUNT","RATE_DAILY","PERIOD"]
[391904647,1760971840520,-1050.55,0.00033972,60]
[391904648,1760971840530,-1050.55,0.00033972,60]
[391904649,1760971840540,-1050.55,0.00033972,60]
[391904650,1760971840552,-1050.55,0.00033972,60]
[391904651,1760971840562,-1050.63147275,0.00033972,60]
[391904652,1760971840572,-1448178.52565767,0.00033972,30]
[391904672,1760971844105,-206564.55244233,0.00033972,30]
[391904673,1760971844115,-1000.0,0.00033972,30]
[391904674,1760971844133,-151.0,0.00033972,30]
[391904675,1760971844142,-160.092976,0.00033972,30]
[391904677,1760971844152,-151.0,0.00033972,30]
[391904678,1760971844161,-151.0,0.00033972,30]
[391904679,1760971844172,-151.0,0.00033972,30]
[391904680,1760971844181,-151.0,0.00033972,30]
[391904681,1760971844191,-151.0,0.00033972,30]
[391904682,1760971844200,-151.0,0.00033972,30]
[391904683,1760971844213,-153.28037476,0.00033972,30]
[391904684,1760971844222,-151.0,0.00033972,30]
[391904685,1760971844232,-379.77643342,0.00033973,5]
[391904686,1760971844242,-500.0,0.00033973,2]
[391904687,1760971844251,-500.0,0.00033973,5]
[391904688,1760971844260,-500.0,0.00033973,5]
[391904689,1760971844269,-500.0,0.00033973,5]
[391904690,1760971844279,-500.0,0.00033973,5]
[391904691,1760971844288,-500.0,0.00033973,5]
[391904692,1760971844297,-510.21036092,0.00033973,5]
[391904693,1760971844307,-503.90820243,0.00033973,5]
[391904694,1760971844316,-1929.25994067,0.0003398,7]
[391904695,1760971844327,-160.0,0.00034,30]
[391904696,1760971844337,-160.0,0.00034,30]
[391904697,1760971844346,-1411.18,0.00034018,60]
[391904698,1760971844355,-160.61,0.00034018,120]
[391904699,1760971844365,-169.271165,0.00034049,30]
[391904700,1760971844374,-157.115245,0.00034049,30]
[391904701,1760971844383,-1900.0,0.00034062,7]
[391904702,1760971844392,-168.0,0.00034106,2]
[391904703,1760971844402,-156.588338,0.00034202,60]
[391904704,1760971844411,-2038.17909435,0.00034246,2]
[391904705,1760971844420,-1000.0,0.00034246,30]
[391904706,1760971844429,-2558.24870007,0.00034246,120]
[391904723,1760971847330,-564.37678001,0.00033962,10]
[391904724,1760971847342,-59.45321999,0.00033962,10]
[391904725,1760971847351,-151.0,0.00033972,30]
[391904726,1760971847360,-151.0,0.00033972,30]
[391904727,1760971847370,-440.75129993,0.00034246,120]
[391904728,1760971847380,-151.0,0.00034438,30]
[391904729,1760971847389,-751.0,0.00034438,30]
[391904730,1760971847399,-364.96803992,0.00034491,5]
[391904731,1760971847409,-198.14164939,0.00034491,5]
[391904732,1760971847418,-151.0,0.00034493,30]
[391904733,1760971847429,-751.0,0.00034493,30]
[391904734,1760971847439,-161.12948088,0.00034493,30]
[391904735,1760971847449,-161.12948087,0.00034493,30]
[391904736,1760971847459,-1000.0,0.0003452,30]
[391904737,1760971847468,-1000.0,0.00034521,5]
[391904738,1760971847478,-1000.0,0.00034521,5]
[391904739,1760971847490,-155.0,0.00034521,30]
[391904740,1760971847499,-151.0,0.00034548,30]
[391904741,1760971847508,-751.0,0.00034548,30]
[391904742,1760971847518,-283.0,0.00034602,30]
[391904743,1760971847528,-751.0,0.00034602,30]
[391904744,1760971847537,-751.0,0.00034657,30]
[391904745,1760971847547,-1074.95,0.000347,14]
[391904746,1760971847556,-751.0,0.00034712,30]
[391904747,1760971847566,-751.0,0.00034767,30]
[391904748,1760971847575,-1000.0,0.00034794,30]
[391904749,1760971847585,-751.0,0.00034822,30]
[391904750,1760971847595,-386.68,0.00034874,2]
[391904751,1760971847604,-751.0,0.00034876,30]
[391904752,1760971847614,-1900.0,0.00034884,7]
[391904753,1760971847623,-35674.48,0.000349,60]
[391904754,1760971847633,-190.27877294,0.000349,120]
[391904755,1760971847644,-8617.25,0.000349,14]
[391904756,1760971847653,-169.271165,0.000349,60]
[391904757,1760971847663,-169.271165,0.00034915,20]
[391904758,1760971847672,-157.115245,0.00034915,20]
[391904759,1760971847682,-2999.0,0.00034931,120]
[391904760,1760971847691,-751.0,0.00034931,30]
[391904761,1760971847702,-161.12948088,0.00034959,30]
[391904762,1760971847713,-161.12948087,0.00034959,30]
[391904763,1760971847722,-751.0,0.00034986,30]
[391904764,1760971847732,-160.0,0.00034997,3]
[391904765,1760971847741,-239.45692271,0.00034998,2]
[391904766,1760971847751,-300.0,0.00035,5]
[391904767,1760971847761,-5000.0,0.00035,40]
[391904768,1760971847771,-39000.41459662,0.00035,30]
[391904854,1760972028109,114.38470968,0.00019937,2]
[391904855,1760972028137,35.61529032,0.00019937,2]
[391904856,1760972028545,167.38,0.00020887,2]
[391904857,1760972028981,251.06,0.00021836,2]
[391904858,1760972029411,334.75,0.00022785,2]
[391904859,1760972029827,418.44,0.00023735,2]
[391904860,1760972036133,578.461405,0.00030137,120]
[391904991,1760972170144,5000.0,0.00023054,2]
[391905038,1760972265171,5000.0,0.00024075,2]
[391905039,1760972271862,151.61,0.00030136,120]
[391905042,1760972288802,5000.0,0.00024075,2]
[391905043,1760972304432,3102.33647811,0.00024075,2]
[391905044,1760972312437,1897.67352189,0.00024075,2]
[391905045,1760972312462,3102.32647811,0.00024075,2]
[391905046,1760972328187,150.0,0.00024075,2]
[391905047,1760972334900,393.6270874,0.00024075,2]
[391905048,1760972402500,196.0,0.00018,2]
[391905049,1760972402723,196.0,0.00018033,2]
[391905050,1760972403245,196.0,0.00018067,2]
[391905051,1760972403300,266.32544327,0.000181,2]
[391905053,1760972432713,5000.0,0.00024075,2]
[391905054,1760972447849,499.73099122,0.00023797,2]
[391905055,1760972447875,166.26900878,0.00023797,2]
[391905056,1760972457169,5000.0,0.00024075,2]
[391905057,1760972480781,4833.74099122,0.00024075,2]
[391905058,1760972480811,163.7780092,0.00024075,2]
[391905060,1760972503752,644.02434222,0.00024075,2]
[391905061,1760972517749,9192.20764858,0.00024075,2]
[391905062,1760972517775,807.79235142,0.00024075,2]
[391905063,1760972527183,4355.97565778,0.00024075,2]
[391905069,1760972535157,961.81468572,0.00024075,2]
[391905071,1760972551928,3874.42730508,0.00024075,2]
[391905072,1760972551954,1125.57269492,0.00024075,2]
[391905073,1760972575774,417.15472785,0.00024,3]
[391905074,1760972597002,417.15472785,0.0003,120]
[391905075,1760972628747,161.0,8.3e-07,2]
[391905076,1760972633614,5000.0,0.00024075,2]
[391905077,1760972642037,3296.28257723,0.00024075,2]
[391905078,1760972642061,1703.71742277,0.00024075,2]
[391905079,1760972662482,5000.0,0.00024075,2]
[391905080,1760972670935,4984.59769996,0.00024075,2]
[391905081,1760972679198,15.41230004,0.00024075,2]
[391905082,1760972679225,4969.17539992,0.00024075,2]
[391905083,1760972687315,5000.0,0.00024075,2]
[391905084,1760972711030,30.83460008,0.00024075,2]
[391905085,1760972711057,4969.16539992,0.00024075,2]
[391905086,1760972712667,159.05,0.00021458,2]
[391905087,1760972713109,318.09,0.0002248,2]
[391905088,1760972713630,477.14,0.00023502,2]
[391905089,1760972726445,-262.35311042,0.00031,120]
[391905090,1760972726468,-204.00726077,0.00031,120]
[391905091,1760972726490,-531.92057593,0.00031,120]
[391905092,1760972726512,-201.71905288,0.00031,120]
[391905093,1760972747349,4076.56460008,0.00024,2]
[391905094,1760972747374,10000.01,0.00024,2]
[391905095,1760972747402,10000.01,0.00024,2]
[391905096,1760972747431,10000.01,0.00024,2]
[391905097,1760972747457,3916.07812502,0.00024,2]
[391905101,1760972757924,918.44847082,0.0003013,120]
[391905102,1760972802243,150.0,0.00019916,2]
[391905103,1760972802693,293.8,0.00020864,2]
[391905104,1760972803207,440.7,0.00021813,2]
[391905105,1760972803615,587.6,0.00022761,2]
[391905106,1760972804070,734.5,0.00023709,2]
[391905109,1760972883935,150.0,0.00019902,2]
[391905110,1760972884283,237.63,0.0002085,2]
[391905111,1760972884712,356.45,0.00021797,2]
[391905112,1760972885239,475.26,0.00022745,2]
[391905113,1760972885684,594.08,0.00023693,2]
[391905116,1760972889010,300.0,0.000237,2]
[391905118,1760972908580,300.0,0.000237,2]
[391905119,1760972945718,300.0,0.000237,2]
[391905120,1760972947805,300.0,0.000237,2]
[391905121,1760972955243,207.88,0.00015984,10]
[391905122,1760972961741,300.0,0.000237,2]
[391905123,1760972966587,300.0,0.000237,2]
[391905124,1760972967191,150.0,0.00019929,2]
[391905125,1760972967360,191.47,0.00020878,2]
[391905126,1760972967843,287.21,0.00021827,2]
[391905127,1760972968351,382.94,0.00022776,2]
[391905128,1760972968779,478.68,0.00023725,2]
[391905129,1760972982830,300.0,0.000237,2]
[391905130,1760973005889,300.0,0.000237,2]
[391905131,1760973009665,300.0,0.000237,2]
[391905132,1760973010616,300.0,0.000237,2]
[391905133,1760973024129,300.0,0.000237,2]
[391905164,1760973031858,-150.0,0.00024452,2]
[391905166,1760973031867,-574.41,0.00024674,2]
[391905167,1760973031876,-294.16336193,0.00024697,2]
[391905169,1760973031886,-189.0,0.00024699,2]
[391905171,1760973031895,-493.98859241,0.00024699,2]
[391905178,1760973031947,-706.01140759,0.00024699,2]
[391905180,1760973031957,-9393.22193795,0.000247,2]
[391905182,1760973031966,-500.0,0.00024773,2]
[391905184,1760973031975,-500.0,0.00024773,2]
[391905186,1760973031985,-379.77643342,0.00024773,2]
[391905189,1760973031996,-500.0,0.00024773,2]
[391905192,1760973032006,-507.57033413,0.00024773,2]
[391905194,1760973032015,-500.0,0.00024773,2]
[391905196,1760973032025,-501.65222565,0.00024773,2]
[391905198,1760973032034,-150.86007013,0.00024773,2]
[391905200,1760973032043,-500.0,0.00024773,2]
[391905202,1760973032053,-500.0,0.00024773,2]
[391905204,1760973032062,-500.0,0.00024773,2]
[391905206,1760973032072,-500.0,0.00024773,2]
[391905208,1760973032081,-500.0,0.00024773,2]
[391905210,1760973032090,-500.0,0.00024773,2]
[391905212,1760973032099,-807.93,0.0002479,3]
[391905214,1760973032108,-403.97,0.0002479,3]
[391905216,1760973032117,-201.98,0.0002479,3]
[391905218,1760973032127,-605.97,0.0002479,3]
[391905220,1760973032136,-476.79,0.0002479,3]
[391905222,1760973032145,-317.86,0.0002479,3]
[391905224,1760973032154,-158.93,0.0002479,3]
[391905226,1760973032163,-476.84,0.0002479,3]
[391905228,1760973032174,-26732.5215652,0.0002479,2]
[391905510,1760973037722,-541.19957396,0.0002479,2]
[391905511,1760973037768,-4452.42586313,0.0002479,2]
[391905512,1760973037778,-500.0,0.00024797,2]
[391905513,1760973037787,-500.0,0.00024797,2]
[391905514,1760973037796,-500.0,0.00024797,2]
[391905515,1760973037806,-500.0,0.00024797,2]
[391905516,1760973037815,-500.0,0.00024797,2]
[391905517,1760973037824,-500.0,0.00024797,2]
[391905518,1760973037833,-500.0,0.00024797,2]
[391905519,1760973037842,-500.0,0.00024797,2]
[391905520,1760973037851,-500.0,0.00024797,2]
[391905521,1760973037861,-500.0,0.00024797,2]
[391905522,1760973037872,-500.0,0.00024797,2]
[391905523,1760973037882,-500.0,0.00024797,2]
[391905524,1760973037892,-500.0,0.00024797,2]
[391905525,1760973037902,-500.0,0.00024797,2]
[391905526,1760973037914,-500.0,0.00024797,2]
[391905527,1760973037924,-500.0,0.00024797,2]
[391905528,1760973037934,-500.0,0.00024797,2]
[391905529,1760973037943,-500.0,0.00024797,2]
[391905530,1760973037953,-500.0,0.00024797,2]
[391905531,1760973037963,-500.0,0.00024797,2]
[391905532,1760973037973,-500.0,0.00024797,2]
[391905533,1760973037984,-500.0,0.00024797,2]
[391905534,1760973037994,-500.0,0.00024797,2]
[391905535,1760973038004,-500.0,0.00024797,2]
[391905536,1760973038014,-500.0,0.00024797,2]
[391905537,1760973038024,-500.0,0.00024797,2]
[391905538,1760973038034,-500.0,0.00024797,2]
[391905539,1760973038043,-500.0,0.00024797,2]
[391905540,1760973038053,-628.10397038,0.00024797,2]
[391905541,1760973038063,-500.0,0.00024797,2]
[391905542,1760973038073,-500.0,0.00024797,2]
[391905543,1760973038082,-500.0,0.00024797,2]
[391905544,1760973038092,-500.0,0.00024797,2]
[391905545,1760973038102,-500.0,0.00024797,2]
[391905546,1760973038113,-500.0,0.00024797,2]
[391905547,1760973038123,-500.0,0.00024797,2]
[391905548,1760973038134,-500.0,0.00024797,2]
[391905549,1760973038144,-500.0,0.00024797,2]
[391905550,1760973038154,-500.0,0.00024797,2]
[391905551,1760973038167,-500.0,0.00024797,2]
[391905552,1760973038176,-500.0,0.00024797,2]
[391905553,1760973038187,-500.0,0.00024797,2]
[391905554,1760973038197,-500.0,0.00024797,2]
[391905555,1760973038207,-500.0,0.00024797,2]
[391905556,1760973038217,-500.0,0.00024797,2]
[391905557,1760973038226,-500.0,0.00024797,2]
[391905558,1760973038235,-500.0,0.00024797,2]
[391905559,1760973038245,-500.0,0.00024797,2]
[391905560,1760973038254,-500.0,0.00024797,2]
[391905561,1760973038265,-500.0,0.00024798,2]
[391905562,1760973038274,-500.0,0.00024798,2]
[391905563,1760973038284,-592.04,0.00024798,2]
[391905564,1760973038294,-500.0,0.00024798,2]
[391905565,1760973038303,-258.90019162,0.00024799,2]
[391905566,1760973038312,-500.0,0.00024799,2]
[391905567,1760973038322,-500.0,0.00024799,2]
[391905568,1760973038331,-500.0,0.00024799,2]
[391905569,1760973038342,-500.0,0.00024799,2]
[391905570,1760973038351,-500.0,0.00024799,2]
[391905571,1760973038361,-500.0,0.00024799,2]
[391905572,1760973038371,-500.0,0.00024799,2]
[391905573,1760973038381,-500.0,0.00024799,2]
[391905574,1760973038391,-500.0,0.00024799,2]
[391905575,1760973038401,-500.0,0.00024799,2]
[391905576,1760973038410,-500.0,0.00024799,2]
[391905577,1760973038420,-511.18097354,0.00024799,2]
[391905578,1760973038430,-370000.0,0.000248,2]
[391905579,1760973038440,-417.15472785,0.000248,7]
[391905580,1760973038450,-402.9601108,0.000248,7]
[391905581,1760973038460,-22072.97,0.000248,7]
[391905582,1760973038470,-500.0,0.00024873,2]
[391905583,1760973038479,-453.7221668,0.00024873,2]
[391905584,1760973038489,-500.0,0.00024873,2]
[391905585,1760973038499,-500.0,0.00024873,2]
[391905586,1760973038508,-158.10768188,0.00024873,2]
[391905587,1760973038517,-500.0,0.00024873,2]
[391905588,1760973038527,-500.0,0.00024873,2]
[391905589,1760973038537,-500.0,0.00024873,2]
[391905590,1760973038546,-500.0,0.00024873,2]
[391905591,1760973038556,-158.05538171,0.00024873,2]
[391905592,1760973038566,-500.0,0.00024873,2]
[391905593,1760973038575,-433.48337635,0.00024873,2]
[391905594,1760973038585,-158.45551985,0.00024873,2]
[391905595,1760973038594,-452.18541522,0.00024873,2]
[391905596,1760973038604,-158.05537951,0.00024873,2]
[391905597,1760973038617,-158.05537868,0.00024873,2]
[391905598,1760973038627,-500.0,0.00024873,2]
[391905599,1760973038637,-158.42102128,0.00024873,2]
[391905600,1760973038646,-519.77062949,0.00024873,2]
[391905601,1760973038657,-503.90820243,0.00024873,2]
[391905602,1760973038666,-515.34274103,0.00024873,2]
[391905603,1760973038788,-500.0,0.00024873,2]
[391905604,1760973038799,-500.0,0.00024873,2]
[391905605,1760973038809,-500.0,0.00024873,2]
[391905606,1760973038818,-305156.481626,0.000249,2]
[391905607,1760973038828,-7497.34649767,0.0002499,2]
[391905608,1760973038838,-167.03,0.00025,10]
[391905609,1760973038848,-167.03,0.00025,10]
[391905610,1760973038858,-150.99,0.00025,10]
[391905611,1760973038869,-417.15472785,0.00025,10]
[391905612,1760973038879,-417.15472785,0.00025,10]
[391905613,1760973038888,-821.13222664,0.00025,30]
[391905614,1760973038898,-9393.22193793,0.00025,2]
[391905615,1760973038907,-355.0,0.00025007,2]
[391905616,1760973038916,-172.5,0.00025052,2]
[391905617,1760973038926,-592.04,0.00025072,2]
[391905618,1760973038936,-500.0,0.00025072,2]
[391905619,1760973038946,-151.0,0.000251,10]
[391905620,1760973038956,-151.0,0.000252,10]
[391905621,1760973038966,-199.0,0.00025205,7]
[391905622,1760973038976,-411.0,0.00025216,2]
[391905623,1760973038986,-151.0,0.000253,20]
[391905624,1760973038995,-9393.22193793,0.000253,2]
[391905625,1760973039005,-261.40251625,0.00025321,2]
[391905626,1760973039016,-1000.0,0.00025321,2]
[391905627,1760973039026,-1000.0,0.00025321,2]
[391905628,1760973039035,-1000.0,0.00025321,2]
[391905629,1760973039044,-1000.0,0.00025321,2]
[391905630,1760973039054,-1000.0,0.00025321,2]
[391905631,1760973039064,-1000.0,0.00025321,2]
[391905632,1760973039074,-1114.73920808,0.00025321,2]
[391905633,1760973039083,-1000.0,0.00025321,2]
[391905634,1760973039093,-500.0,0.00025346,2]
[391905635,1760973039102,-151.0,0.000254,20]
[391905636,1760973039112,-151.0,0.000254,14]
[391905637,1760973039122,-1000.0,0.00025421,2]
[391905638,1760973039132,-410.62875183,0.00025421,2]
[391905639,1760973039141,-1000.0,0.00025421,2]
[391905640,1760973039151,-1000.0,0.00025421,2]
[391905641,1760973039160,-174.86420049,0.00025421,2]
[391905642,1760973039170,-514.52470429,0.00025421,2]
[391905643,1760973039179,-933.28505328,0.00025421,2]
[391905644,1760973039188,-1000.0,0.00025421,2]
[391905645,1760973039198,-500.0,0.00025421,2]
[391905646,1760973039207,-500.0,0.00025467,2]
[391905647,1760973039217,-473.78928526,0.00025467,2]
[391905648,1760973039226,-160.09153937,0.00025473,2]
[391905649,1760973039236,-160.05607692,0.00025473,2]
[391905650,1760973039245,-500.0,0.00025473,2]
[391905651,1760973039255,-500.0,0.00025473,2]
[391905652,1760973039270,-500.0,0.00025473,2]
[391905653,1760973039280,-500.0,0.00025473,2]
[391905654,1760973039290,-500.0,0.00025473,2]
[391905655,1760973039301,-160.07405755,0.00025473,2]
[391905656,1760973039311,-150.0,0.00025473,2]
[391905657,1760973039321,-199.0,0.00025479,8]
[391905658,1760973039331,-381968.34112633,0.000255,3]
[391905659,1760973039340,-400.05466357,0.000255,3]
[391905660,1760973039350,-151.0,0.000255,7]
[391905661,1760973039360,-151.0,0.000255,7]
[391905662,1760973039372,-151.0,0.000255,2]
[391905663,1760973039383,-151.0,0.000255,7]
[391905664,1760973039394,-156.002361,0.000255,7]
[391905665,1760973039403,-151.0,0.000255,7]
[391905666,1760973039413,-161.844852,0.000255,7]
[391905667,1760973039422,-161.844852,0.000255,7]
[391905668,1760973039432,-151.0,0.000255,7]
[391905669,1760973039441,-161.844852,0.000255,7]
[391905670,1760973039451,-151.0,0.000255,7]
[391905671,1760973039462,-161.844852,0.000255,7]
[391905672,1760973039471,-151.0,0.000255,7]
[391905673,1760973039482,-151.0,0.000255,7]
[391905674,1760973039504,-151.0,0.000255,7]
[391905675,1760973039522,-151.0,0.000255,7]
[391905678,1760973039541,-151.0,0.000255,7]
[391905680,1760973039561,-151.0,0.000255,7]
[391905681,1760973039580,-181.355164,0.000255,7]
[391905682,1760973039597,-1059.156503,0.000255,7]
[391905683,1760973039617,-256.031148,0.000255,7]
[391905684,1760973039631,-1059.156503,0.000255,7]
[391905685,1760973039649,-256.031148,0.000255,7]
[391905686,1760973039668,-1059.156503,0.000255,7]
[391905687,1760973039690,-151.0,0.000255,7]
[391905688,1760973039703,-256.031148,0.000255,7]
[391905689,1760973039723,-151.0,0.000255,7]
[391905690,1760973039740,-1059.156503,0.000255,7]
[391905691,1760973039758,-256.031148,0.000255,7]
[391905692,1760973039772,-183.026705,0.000255,7]
[391905693,1760973039787,-435.042453,0.000255,7]
[391905694,1760973039805,-324.678356,0.000255,7]
[391905696,1760973039820,-435.042453,0.000255,7]
[391905698,1760973039835,-324.678356,0.000255,7]
[391905699,1760973039850,-151.0,0.000255,7]
[391905701,1760973039865,-324.678356,0.000255,7]
[391905703,1760973039879,-435.042453,0.000255,7]
[391905705,1760973039894,-324.678356,0.000255,7]
[391905706,1760973039910,-151.0,0.000255,7]
[391905707,1760973039925,-9393.22193793,0.000256,2]
[391905708,1760973039941,-500.0,0.0002562,2]
[391905709,1760973039956,-670.15,0.00025623,2]
[391905710,1760973039972,-195.0,0.00025652,2]
[391905711,1760973039988,-199.0,0.00025753,9]
[391905712,1760973040004,-776.54138851,0.00025868,2]
[391905713,1760973040021,-1500.0,0.00025868,2]
[391905714,1760973040036,-1500.0,0.00025868,2]
[391905715,1760973040052,-850.70958409,0.00025868,2]
[391905716,1760973040066,-1500.0,0.00025868,2]
[391905717,1760973040081,-1500.0,0.00025868,2]
[391905718,1760973040096,-500.0,0.00025894,2]
[391905719,1760973040112,-9393.22193793,0.000259,2]
[391905720,1760973040127,-1500.0,0.00025968,2]
[391905721,1760973040141,-1500.0,0.00025968,2]
[391905722,1760973040157,-520.34331837,0.00025968,2]
[391905723,1760973040172,-1530.89254654,0.00025968,2]
[391905724,1760973040188,-663515.94982051,0.00026,3]
[391905725,1760973040203,-151.0,0.00026,7]
[391905726,1760973040217,-151.0,0.00026,7]
[391905727,1760973040232,-151.0,0.00026,7]
[391905728,1760973040247,-151.0,0.00026,7]
[391905729,1760973040261,-151.0,0.00026,7]
[391905730,1760973040276,-1823.142174,0.00026,7]
[391905731,1760973040291,-1823.142174,0.00026,7]
[391905732,1760973040305,-1823.142174,0.00026,7]
[391905733,1760973040321,-1823.142174,0.00026,7]
[391905734,1760973040336,-151.0,0.00026,7]
[391905735,1760973040352,-151.0,0.00026,7]
[391905736,1760973040369,-151.0,0.00026,7]
[391905737,1760973040383,-151.0,0.00026,7]
[391905738,1760973040401,-151.0,0.00026,7]
[391905739,1760973040416,-180.969693,0.00026,7]
[391905740,1760973040432,-180.969693,0.00026,7]
[391905741,1760973040447,-180.969693,0.00026,7]
[391905742,1760973040463,-180.969693,0.00026,7]
[391905743,1760973040478,-159.10792,0.00026,7]
[391905744,1760973040493,-1297.143153,0.00026,7]
[391905745,1760973040509,-151.0,0.00026,7]
[391905746,1760973040525,-151.0,0.00026,7]
[391905747,1760973040540,-151.0,0.00026,7]
[391905748,1760973040553,-151.0,0.00026,7]
[391905749,1760973040564,-152.761404,0.00026,7]
[391905750,1760973040573,-151.0,0.00026,7]
[391905751,1760973040761,-831.41234,0.00026,7]
[391905752,1760973040771,-1297.143153,0.00026,7]
[391905753,1760973040780,-169.790875,0.00026,7]
[391905754,1760973040790,-1474.53122,0.00026,7]
[391905755,1760973040800,-831.41234,0.00026,7]
[391905756,1760973040809,-1297.143153,0.00026,7]
[391905757,1760973040819,-1474.53122,0.00026,7]
[391905758,1760973040829,-831.41234,0.00026,7]
[391905759,1760973040839,-1297.143153,0.00026,7]
[391905760,1760973040849,-151.0,0.00026,7]
[391905761,1760973040859,-1474.53122,0.00026,7]
[391905762,1760973040868,-831.41234,0.00026,7]
[391905763,1760973040878,-151.0,0.00026,7]
[391905764,1760973040887,-151.0,0.00026,7]
[391905765,1760973040897,-151.0,0.00026,7]
[391905766,1760973040906,-1474.53122,0.00026,7]
[391905767,1760973040916,-151.0,0.00026,7]
[391905768,1760973040925,-151.0,0.00026,7]
[391905769,1760973040936,-219.803885,0.00026,7]
[391905770,1760973040946,-151.0,0.00026,7]
[391905771,1760973040956,-219.803885,0.00026,7]
[391905772,1760973040965,-151.0,0.00026,7]
[391905773,1760973040974,-219.803885,0.00026,7]
[391905774,1760973040984,-219.803885,0.00026,7]
[391905775,1760973040993,-151.0,0.00026,7]
[391905776,1760973041003,-151.0,0.00026,7]
[391905777,1760973041012,-151.0,0.00026,7]
[391905778,1760973041021,-151.0,0.00026,7]
[391905779,1760973041031,-152.094476,0.00026,7]
[391905780,1760973041040,-151.0,0.00026,7]
[391905781,1760973041050,-151.0,0.00026,7]
[391905782,1760973041059,-276.228048,0.00026,7]
[391905783,1760973041070,-151.0,0.00026,7]
[391905784,1760973041080,-195.670966,0.00026,7]
[391905785,1760973041092,-195.670966,0.00026,7]
[391905786,1760973041106,-195.670966,0.00026,7]
[391905787,1760973041116,-195.670966,0.00026,7]
[391905788,1760973041126,-553.943476,0.00026,7]
[391905789,1760973041136,-553.943476,0.00026,7]
[391905790,1760973041147,-553.943476,0.00026,7]
[391905791,1760973041156,-553.943476,0.00026,7]
[391905792,1760973041165,-154.816755,0.00026,7]
[391905793,1760973041175,-177.750339,0.00026,7]
[391905794,1760973041186,-177.750339,0.00026,7]
[391905795,1760973041195,-177.750339,0.00026,7]
[391905796,1760973041204,-177.750339,0.00026,7]
[391905797,1760973041214,-151.0,0.00026,7]
[391905798,1760973041224,-151.0,0.00026,7]
[391905799,1760973041233,-151.0,0.00026,7]
[391905800,1760973041243,-151.0,0.00026,7]
[391905801,1760973041253,-151.0,0.00026,7]
[391905802,1760973041262,-151.0,0.00026,7]
[391905803,1760973041273,-151.0,0.00026,7]
[391905804,1760973041282,-151.0,0.00026,7]
[391905805,1760973041291,-151.0,0.00026,7]
[391905806,1760973041301,-151.0,0.00026,7]
[391905807,1760973041310,-151.0,0.00026,7]
[391905808,1760973041323,-542.894894,0.00026,7]
[391905809,1760973041333,-151.0,0.00026,7]
[391905810,1760973041342,-542.894894,0.00026,7]
[391905811,1760973041352,-542.894894,0.00026,7]
[391905812,1760973041362,-151.0,0.00026,7]
[391905813,1760973041371,-151.0,0.00026,2]
[391905814,1760973041380,-151.0,0.00026,7]
[391905815,1760973041389,-542.894894,0.00026,7]